[Event "Live Chess"]
[Site "Chess.com"]
[Date "2024.06.01"]
[Round "-"]
[White "Nazar-Makarchuk"]
[Black "Bob2pen"]
[Result "0-1"]
[WhiteElo "1513"]
[BlackElo "1866"]
[TimeControl "300"]
[EndTime "11:23:04 PDT"]
[Termination "Bob2pen won by resignation"]

1. e4 {[%clk 0:04:57.6]} 1... e6 {[%clk 0:04:59]} 2. Nf3 {[%clk 0:04:57.1]} 2...
d5 {[%clk 0:04:58]} 3. exd5 {[%clk 0:04:49.4]} 3... exd5 {[%clk 0:04:56.6]} 4.
d4 {[%clk 0:04:49.1]} 4... Bd6 {[%clk 0:04:55.6]} 5. c4 {[%clk 0:04:48.6]} 5...
dxc4 {[%clk 0:04:54.1]} 6. Bxc4 {[%clk 0:04:48.2]} 6... Ne7 {[%clk 0:04:53.2]}
7. O-O {[%clk 0:04:47.7]} 7... O-O {[%clk 0:04:52.1]} 8. Nc3 {[%clk 0:04:44.8]}
8... Nbc6 {[%clk 0:04:50]} 9. Bb5 {[%clk 0:04:42.7]} 9... Bg4 {[%clk 0:04:47.3]}
10. Be2 {[%clk 0:04:40.8]} 10... Re8 {[%clk 0:04:44.8]} 11. Ne5 {[%clk
0:04:38.9]} 11... Bxe5 {[%clk 0:04:33.2]} 12. dxe5 {[%clk 0:04:36.5]} 12... Qxd1
{[%clk 0:04:30.3]} 13. Rxd1 {[%clk 0:04:35.1]} 13... Bxe2 {[%clk 0:04:26.9]} 14.
Nxe2 {[%clk 0:04:34.2]} 14... Nxe5 {[%clk 0:04:25.7]} 15. Re1 {[%clk 0:04:31.4]}
15... Nd3 {[%clk 0:04:22.7]} 16. Rd1 {[%clk 0:04:27.4]} 16... Rad8 {[%clk
0:04:19.6]} 17. Nc3 {[%clk 0:04:23.3]} 17... Nc6 {[%clk 0:04:10.4]} 18. b3
{[%clk 0:04:18.9]} 18... Nxc1 {[%clk 0:04:04.3]} 19. Raxc1 {[%clk 0:04:16.3]}
19... Nb4 {[%clk 0:03:57.2]} 20. Rxd8 {[%clk 0:04:10.6]} 20... Rxd8 {[%clk
0:03:55.1]} 21. Nb5 {[%clk 0:04:09.3]} 21... Nxa2 {[%clk 0:03:50.4]} 22. Ra1
{[%clk 0:04:01.3]} 22... c6 {[%clk 0:03:48.2]} 23. h3 {[%clk 0:03:54.6]} 23...
cxb5 {[%clk 0:03:42.9]} 24. Rxa2 {[%clk 0:03:53.3]} 24... a6 {[%clk 0:03:42.1]}
25. Rc2 {[%clk 0:03:51.4]} 25... Kf8 {[%clk 0:03:37.3]} 26. Rc7 {[%clk
0:03:50.3]} 26... Rb8 {[%clk 0:03:36.4]} 27. Kf1 {[%clk 0:03:49]} 27... a5
{[%clk 0:03:35.4]} 28. Rc5 {[%clk 0:03:47.4]} 28... a4 {[%clk 0:03:34.6]} 29.
Rxb5 {[%clk 0:03:46.4]} 29... axb3 {[%clk 0:03:30.8]} 30. Rxb3 {[%clk
0:03:45.9]} 30... Ke7 {[%clk 0:03:30.1]} 31. Ke2 {[%clk 0:03:45.4]} 31... b5
{[%clk 0:03:29.1]} 32. Kd3 {[%clk 0:03:44.9]} 32... Kd6 {[%clk 0:03:28.1]} 33.
Kd4 {[%clk 0:03:44.3]} 33... b4 {[%clk 0:03:25.1]} 34. Kc4 {[%clk 0:03:41.6]}
34... Ke5 {[%clk 0:03:24]} 35. Rxb4 {[%clk 0:03:38.9]} 35... Rxb4+ {[%clk
0:03:22.7]} 36. Kxb4 {[%clk 0:03:38.6]} 36... Ke4 {[%clk 0:03:20.6]} 37. Kc3
{[%clk 0:03:38.1]} 37... f5 {[%clk 0:03:18.5]} 38. Kd2 {[%clk 0:03:37.3]} 38...
g5 {[%clk 0:03:17.3]} 39. Ke2 {[%clk 0:03:36.7]} 39... g4 {[%clk 0:03:16.6]} 40.
hxg4 {[%clk 0:03:35.3]} 40... fxg4 {[%clk 0:03:15.8]} 41. Kd2 {[%clk 0:03:32.4]}
41... h5 {[%clk 0:03:14.4]} 42. Ke2 {[%clk 0:03:31.9]} 42... h4 {[%clk
0:03:13.3]} 43. Kd2 {[%clk 0:03:31.2]} 43... h3 {[%clk 0:03:12.3]} 44. f3+
{[%clk 0:03:20.2]} 44... Kf4 {[%clk 0:03:06.2]} 45. gxh3 {[%clk 0:03:09.9]}
45... gxh3 {[%clk 0:03:04.6]} 0-1

[Event "Live Chess"]
[Site "Chess.com"]
[Date "2024.06.01"]
[Round "-"]
[White "powerchs"]
[Black "willc-h99"]
[Result "0-1"]
[WhiteElo "1251"]
[BlackElo "2632"]
[TimeControl "300"]
[EndTime "11:23:15 PDT"]
[Termination "willc-h99 won by checkmate"]

1. e4 {[%clk 0:04:55]} 1... c6 {[%clk 0:04:56.2]} 2. d4 {[%clk 0:04:52.4]} 2...
d5 {[%clk 0:04:54.7]} 3. Nc3 {[%clk 0:04:51.5]} 3... dxe4 {[%clk 0:04:52.2]} 4.
Nxe4 {[%clk 0:04:50.3]} 4... Nf6 {[%clk 0:04:51.9]} 5. Nxf6+ {[%clk 0:04:48.1]}
5... exf6 {[%clk 0:04:51.8]} 6. Be2 {[%clk 0:04:46]} 6... Bd6 {[%clk 0:04:51]}
7. Nf3 {[%clk 0:04:43.6]} 7... O-O {[%clk 0:04:50.6]} 8. O-O {[%clk 0:04:42.1]}
8... Nd7 {[%clk 0:04:47.8]} 9. c3 {[%clk 0:04:40.6]} 9... Re8 {[%clk 0:04:42.6]}
10. Bd3 {[%clk 0:04:39]} 10... Nf8 {[%clk 0:04:41.7]} 11. Qc2 {[%clk 0:04:36.7]}
11... Bg4 {[%clk 0:04:33.8]} 12. Nd2 {[%clk 0:04:26.2]} 12... Bc7 {[%clk
0:04:19.1]} 13. Ne4 {[%clk 0:04:22.3]} 13... f5 {[%clk 0:04:13.7]} 14. Ng3
{[%clk 0:04:11.9]} 14... f4 {[%clk 0:04:02.1]} 15. Ne4 {[%clk 0:04:05.6]} 15...
f3 {[%clk 0:03:56.7]} 16. Ng5 {[%clk 0:03:53.1]} 16... Ng6 {[%clk 0:03:17.8]}
17. g3 {[%clk 0:03:35]} 17... Re1 {[%clk 0:02:45.5]} 18. Rxe1 {[%clk 0:03:17.5]}
18... Qd7 {[%clk 0:02:22.9]} 19. Be3 {[%clk 0:03:09.3]} 19... Bh5 {[%clk
0:02:13.4]} 20. Bf5 {[%clk 0:03:02.5]} 20... Qd5 {[%clk 0:02:04.9]} 21. c4
{[%clk 0:02:47.9]} 21... Qd8 {[%clk 0:01:56.7]} 22. d5 {[%clk 0:01:49.3]} 22...
Ne5 {[%clk 0:01:27.1]} 23. dxc6 {[%clk 0:01:43.3]} 23... bxc6 {[%clk 0:01:19.5]}
24. Rad1 {[%clk 0:01:41.2]} 24... Qf6 {[%clk 0:01:15.4]} 25. Ne4 {[%clk
0:01:24.3]} 25... Qxf5 {[%clk 0:01:11.3]} 26. Ng5 {[%clk 0:00:27.9]} 26... Qxc2
{[%clk 0:01:08.3]} 27. Rc1 {[%clk 0:00:24.8]} 27... Qf5 {[%clk 0:01:06.1]} 28.
Nxf7 {[%clk 0:00:23.3]} 28... Bxf7 {[%clk 0:01:03.9]} 29. Bf4 {[%clk 0:00:23.1]}
29... Qh3 {[%clk 0:01:01.3]} 30. Rxe5 {[%clk 0:00:22.3]} 30... Qg2# {[%clk
0:01:00.5]} 0-1

[Event "Live Chess"]
[Site "Chess.com"]
[Date "2024.06.01"]
[Round "-"]
[White "hapehansen"]
[Black "Golden_Plans"]
[Result "1/2-1/2"]
[WhiteElo "2243"]
[BlackElo "2253"]
[TimeControl "300"]
[EndTime "11:23:18 PDT"]
[Termination "Game drawn by repetition"]

1. Nf3 {[%clk 0:04:56.4]} 1... Nf6 {[%clk 0:04:50.3]} 2. c4 {[%clk 0:04:54.3]}
2... e6 {[%clk 0:04:50.2]} 3. Nc3 {[%clk 0:04:49.7]} 3... d5 {[%clk 0:04:49]} 4.
e3 {[%clk 0:04:48.6]} 4... c6 {[%clk 0:04:46.5]} 5. d4 {[%clk 0:04:43.8]} 5...
Be7 {[%clk 0:04:43]} 6. Qc2 {[%clk 0:04:38.8]} 6... Nbd7 {[%clk 0:04:39]} 7. Bd3
{[%clk 0:04:35.9]} 7... b6 {[%clk 0:04:38.1]} 8. O-O {[%clk 0:04:34.2]} 8... Bb7
{[%clk 0:04:36.4]} 9. e4 {[%clk 0:04:32.8]} 9... dxe4 {[%clk 0:04:30.3]} 10.
Nxe4 {[%clk 0:04:31]} 10... c5 {[%clk 0:04:30.2]} 11. dxc5 {[%clk 0:04:17.1]}
11... Nxe4 {[%clk 0:04:22.3]} 12. Bxe4 {[%clk 0:04:14.3]} 12... Bxe4 {[%clk
0:04:21.6]} 13. Qxe4 {[%clk 0:04:13.3]} 13... Nxc5 {[%clk 0:04:21.5]} 14. Qc6+
{[%clk 0:04:12]} 14... Kf8 {[%clk 0:04:16.9]} 15. Be3 {[%clk 0:04:03.5]} 15...
Rc8 {[%clk 0:04:05.4]} 16. Qb5 {[%clk 0:04:01.2]} 16... a6 {[%clk 0:04:03.9]}
17. Qb4 {[%clk 0:03:55.1]} 17... Nd3 {[%clk 0:03:56.4]} 18. Qd2 {[%clk
0:03:48.7]} 18... e5 {[%clk 0:03:50.1]} 19. Bxb6 {[%clk 0:03:36.1]} 19... Qd7
{[%clk 0:03:44.2]} 20. Rad1 {[%clk 0:03:25]} 20... e4 {[%clk 0:03:42.3]} 21. Ne5
{[%clk 0:03:12.3]} 21... Nxe5 {[%clk 0:03:25.1]} 22. Qxd7 {[%clk 0:03:10.9]}
22... Nxd7 {[%clk 0:03:25]} 23. Rxd7 {[%clk 0:03:09]} 23... Rxc4 {[%clk
0:03:24.9]} 24. Rfd1 {[%clk 0:03:00.4]} 24... g6 {[%clk 0:03:16.2]} 25. Kf1
{[%clk 0:02:54.5]} 25... Rb4 {[%clk 0:03:04.4]} 26. Rxe7 {[%clk 0:02:39]} 26...
Rxb6 {[%clk 0:03:01]} 27. Rxe4 {[%clk 0:02:37.1]} 27... Rxb2 {[%clk 0:03:00.5]}
28. Ra4 {[%clk 0:02:35.9]} 28... Kg7 {[%clk 0:02:58]} 29. Rxa6 {[%clk
0:02:33.1]} 29... Rc8 {[%clk 0:02:57.4]} 30. Ra3 {[%clk 0:02:23.3]} 30... Rcc2
{[%clk 0:02:55.4]} 31. Rf3 {[%clk 0:02:21.9]} 31... Rxa2 {[%clk 0:02:53.5]} 32.
h4 {[%clk 0:02:19.5]} 32... f5 {[%clk 0:02:48.2]} 33. g3 {[%clk 0:02:17.5]}
33... h5 {[%clk 0:02:46.1]} 34. Kg2 {[%clk 0:02:15.7]} 34... Kf6 {[%clk
0:02:45.2]} 35. Rd6+ {[%clk 0:02:13]} 35... Kf7 {[%clk 0:02:44.5]} 36. Rd7+
{[%clk 0:02:12]} 36... Kf6 {[%clk 0:02:43.5]} 37. Rd6+ {[%clk 0:02:11]} 37...
Kg7 {[%clk 0:02:42.4]} 38. Rd7+ {[%clk 0:02:05.9]} 38... Kh6 {[%clk 0:02:41.5]}
39. Rd6 {[%clk 0:02:04.7]} 39... Rd2 {[%clk 0:02:38.8]} 40. Rc6 {[%clk 0:02:01]}
40... Rac2 {[%clk 0:02:37.6]} 41. Rb6 {[%clk 0:01:59.5]} 41... Re2 {[%clk
0:02:35]} 42. Rd6 {[%clk 0:01:57.6]} 42... Rc1 {[%clk 0:02:33.5]} 43. Re3 {[%clk
0:01:48.9]} 43... Rxe3 {[%clk 0:02:28.2]} 44. fxe3 {[%clk 0:01:48.8]} 44... Kg7
{[%clk 0:02:25.7]} 45. Kf3 {[%clk 0:01:46.9]} 45... Kf7 {[%clk 0:02:24.4]} 46.
Kf4 {[%clk 0:01:44.8]} 46... Rc4+ {[%clk 0:02:20.9]} 47. Kf3 {[%clk 0:01:42.2]}
47... Rc1 {[%clk 0:02:19]} 48. Ra6 {[%clk 0:01:39.5]} 48... Rc7 {[%clk
0:02:15.8]} 49. Rb6 {[%clk 0:01:37.9]} 49... Re7 {[%clk 0:02:15.1]} 50. Kf4
{[%clk 0:01:35.6]} 50... Re4+ {[%clk 0:02:11.1]} 51. Kf3 {[%clk 0:01:33.6]}
51... Re6 {[%clk 0:02:11]} 52. Rxe6 {[%clk 0:01:23.1]} 52... Kxe6 {[%clk
0:02:10.9]} 53. e4 {[%clk 0:01:22]} 53... Ke5 {[%clk 0:02:00.9]} 54. exf5 {[%clk
0:01:19]} 54... Kxf5 {[%clk 0:01:40.7]} 55. Kf2 {[%clk 0:01:16.9]} 55... Kg4
{[%clk 0:01:39.8]} 56. Kg2 {[%clk 0:01:15.4]} 56... Kf5 {[%clk 0:01:33]} 57. Kf3
{[%clk 0:01:14]} 57... Kf6 {[%clk 0:01:26.7]} 58. Kf4 {[%clk 0:01:12.6]} 58...
Kf7 {[%clk 0:01:22.3]} 59. Kf3 {[%clk 0:01:10.8]} 59... Kg7 {[%clk 0:01:21.6]}
60. Ke3 {[%clk 0:01:09.1]} 60... Kh6 {[%clk 0:01:21.5]} 61. Kf4 {[%clk
0:01:07.1]} 61... Kh7 {[%clk 0:01:21.1]} 62. Ke5 {[%clk 0:01:05]} 62... Kg7
{[%clk 0:01:21]} 63. Ke6 {[%clk 0:01:03.4]} 63... Kh7 {[%clk 0:01:11.4]} 64. Kf7
{[%clk 0:01:01.1]} 64... Kh6 {[%clk 0:01:11.3]} 65. Kf6 {[%clk 0:00:57.6]} 65...
Kh7 {[%clk 0:01:10.6]} 66. Kf7 {[%clk 0:00:56.2]} 66... Kh6 {[%clk 0:01:09.5]}
67. Kf6 {[%clk 0:00:53.9]} 67... Kh7 {[%clk 0:01:01.2]} 68. Kf7 {[%clk
0:00:52.1]} 1/2-1/2

[Event "Live Chess"]
[Site "Chess.com"]
[Date "2024.06.01"]
[Round "-"]
[White "sebmoran1"]
[Black "JavaidMiah"]
[Result "1-0"]
[WhiteElo "1522"]
[BlackElo "1182"]
[TimeControl "300"]
[EndTime "11:23:20 PDT"]
[Termination "sebmoran1 won by checkmate"]

1. c4 {[%clk 0:04:55.7]} 1... Nf6 {[%clk 0:04:58.3]} 2. Nc3 {[%clk 0:04:54.5]}
2... e5 {[%clk 0:04:55.5]} 3. g3 {[%clk 0:04:42]} 3... Bc5 {[%clk 0:04:53.7]} 4.
Bg2 {[%clk 0:04:40.6]} 4... O-O {[%clk 0:04:52.3]} 5. Nf3 {[%clk 0:04:39.6]}
5... Re8 {[%clk 0:04:51]} 6. O-O {[%clk 0:04:38.4]} 6... Nc6 {[%clk 0:04:49.6]}
7. e3 {[%clk 0:04:33.1]} 7... Bb6 {[%clk 0:04:36.1]} 8. d4 {[%clk 0:04:30.9]}
8... exd4 {[%clk 0:04:28]} 9. exd4 {[%clk 0:04:30.4]} 9... d5 {[%clk 0:04:22.8]}
10. c5 {[%clk 0:04:27.5]} 10... Ba5 {[%clk 0:04:20.9]} 11. a3 {[%clk 0:04:25.8]}
11... Bxc3 {[%clk 0:04:19.8]} 12. bxc3 {[%clk 0:04:24.6]} 12... Bg4 {[%clk
0:04:03.3]} 13. Bg5 {[%clk 0:04:22]} 13... h6 {[%clk 0:04:00.5]} 14. Be3 {[%clk
0:04:15]} 14... Qd7 {[%clk 0:03:57]} 15. Qb3 {[%clk 0:04:11.1]} 15... Na5 {[%clk
0:03:47.8]} 16. Qb4 {[%clk 0:04:06.3]} 16... b6 {[%clk 0:03:47.1]} 17. cxb6
{[%clk 0:04:04]} 17... axb6 {[%clk 0:03:45.6]} 18. Ne5 {[%clk 0:03:55.6]} 18...
Qe6 {[%clk 0:03:20.7]} 19. Nxg4 {[%clk 0:03:49]} 19... Nxg4 {[%clk 0:03:18.2]}
20. Bf4 {[%clk 0:03:45.9]} 20... Qd7 {[%clk 0:03:05.9]} 21. h3 {[%clk 0:03:39]}
21... Nf6 {[%clk 0:03:03.4]} 22. Be5 {[%clk 0:03:36.4]} 22... Nc6 {[%clk
0:02:32]} 23. Qb5 {[%clk 0:03:32.9]} 23... Nxe5 {[%clk 0:02:30.3]} 24. Qxd7
{[%clk 0:03:23.5]} 24... Nexd7 {[%clk 0:02:29.3]} 25. h4 {[%clk 0:03:19.5]}
25... Ra4 {[%clk 0:02:26.3]} 26. Bh3 {[%clk 0:03:15.5]} 26... Rea8 {[%clk
0:02:24.2]} 27. Rfe1 {[%clk 0:03:09.3]} 27... Kf8 {[%clk 0:02:22.6]} 28. g4
{[%clk 0:02:58.4]} 28... Rxa3 {[%clk 0:02:20.9]} 29. Rxa3 {[%clk 0:02:57.3]}
29... Rxa3 {[%clk 0:02:19.6]} 30. g5 {[%clk 0:02:56.4]} 30... hxg5 {[%clk
0:02:15.9]} 31. hxg5 {[%clk 0:02:56.3]} 31... Ne4 {[%clk 0:02:14.6]} 32. Bxd7
{[%clk 0:02:53.1]} 32... Nxg5 {[%clk 0:02:11.3]} 33. Re8# {[%clk 0:02:46.6]} 1-0

[Event "Live Chess"]
[Site "Chess.com"]
[Date "2024.06.01"]
[Round "-"]
[White "LL220284LL"]
[Black "KeithArkell"]
[Result "1-0"]
[WhiteElo "2576"]
[BlackElo "2513"]
[TimeControl "300"]
[EndTime "11:23:34 PDT"]
[Termination "LL220284LL won by checkmate"]

1. Nf3 {[%clk 0:04:57.7]} 1... d5 {[%clk 0:04:58.2]} 2. g3 {[%clk 0:04:56.4]}
2... Bg4 {[%clk 0:04:56.9]} 3. Bg2 {[%clk 0:04:55.6]} 3... Bxf3 {[%clk
0:04:56.1]} 4. Bxf3 {[%clk 0:04:55.5]} 4... c6 {[%clk 0:04:55.5]} 5. O-O {[%clk
0:04:55]} 5... Nf6 {[%clk 0:04:55]} 6. d3 {[%clk 0:04:54.5]} 6... e6 {[%clk
0:04:54.6]} 7. Nd2 {[%clk 0:04:53.5]} 7... Nbd7 {[%clk 0:04:53.3]} 8. Rb1 {[%clk
0:04:53]} 8... a5 {[%clk 0:04:50.9]} 9. c4 {[%clk 0:04:50.9]} 9... Bc5 {[%clk
0:04:49.4]} 10. e3 {[%clk 0:04:48.5]} 10... O-O {[%clk 0:04:47.5]} 11. Qe2
{[%clk 0:04:47.1]} 11... Re8 {[%clk 0:04:45.9]} 12. Rd1 {[%clk 0:04:45.9]} 12...
a4 {[%clk 0:04:44.3]} 13. b4 {[%clk 0:04:43.2]} 13... axb3 {[%clk 0:04:43.4]}
14. axb3 {[%clk 0:04:43.1]} 14... Bb4 {[%clk 0:04:42.3]} 15. Bg2 {[%clk
0:04:36.5]} 15... Qb6 {[%clk 0:04:37.3]} 16. Bb2 {[%clk 0:04:33.7]} 16... Ra2
{[%clk 0:04:35.4]} 17. Bd4 {[%clk 0:04:16.9]} 17... Bc5 {[%clk 0:04:28.4]} 18.
Bxc5 {[%clk 0:04:10.6]} 18... Nxc5 {[%clk 0:04:26.1]} 19. b4 {[%clk 0:04:07.9]}
19... Na4 {[%clk 0:04:20.3]} 20. Rdc1 {[%clk 0:04:02.5]} 20... Ra8 {[%clk
0:04:18.5]} 21. Qd1 {[%clk 0:03:57.6]} 21... Nb2 {[%clk 0:04:07.9]} 22. Qc2
{[%clk 0:03:37.8]} 22... Nxc4 {[%clk 0:04:01.4]} 23. Nxc4 {[%clk 0:03:35.6]}
23... dxc4 {[%clk 0:03:58]} 24. Qxc4 {[%clk 0:03:34.4]} 24... Nd5 {[%clk
0:03:49.7]} 25. b5 {[%clk 0:03:23.4]} 25... Nxe3 {[%clk 0:03:40.4]} 26. fxe3
{[%clk 0:03:21.1]} 26... Qxe3+ {[%clk 0:03:39.5]} 27. Kh1 {[%clk 0:03:20.5]}
27... Rxg2 {[%clk 0:03:30.4]} 28. Kxg2 {[%clk 0:03:17.9]} 28... Qe2+ {[%clk
0:03:29.8]} 29. Kh3 {[%clk 0:02:54]} 29... g6 {[%clk 0:02:35.5]} 30. Qe4 {[%clk
0:02:13.2]} 30... Qh5+ {[%clk 0:02:32.5]} 31. Qh4 {[%clk 0:02:11.2]} 31... Qe2
{[%clk 0:02:27.3]} 32. Qg4 {[%clk 0:02:04.4]} 32... Qxd3 {[%clk 0:02:23.9]} 33.
Rd1 {[%clk 0:01:59.4]} 33... Qc2 {[%clk 0:02:19.8]} 34. bxc6 {[%clk 0:01:52]}
34... bxc6 {[%clk 0:02:18.1]} 35. Qd4 {[%clk 0:01:41.1]} 35... Ra2 {[%clk
0:02:15.5]} 36. Rb8# {[%clk 0:01:38.9]} 1-0

[Event "Live Chess"]
[Site "Chess.com"]
[Date "2024.06.01"]
[Round "-"]
[White "DoctorMantisTobogganMD"]
[Black "KwikPhoenix"]
[Result "1-0"]
[WhiteElo "2208"]
[BlackElo "2426"]
[TimeControl "300"]
[EndTime "11:23:50 PDT"]
[Termination "DoctorMantisTobogganMD won by resignation"]

1. e4 {[%clk 0:04:46.5]} 1... e6 {[%clk 0:04:58.9]} 2. Nf3 {[%clk 0:04:44.3]}
2... d5 {[%clk 0:04:58.1]} 3. e5 {[%clk 0:04:43.9]} 3... c5 {[%clk 0:04:57.3]}
4. b4 {[%clk 0:04:43]} 4... cxb4 {[%clk 0:04:56.3]} 5. d4 {[%clk 0:04:42.3]}
5... Nc6 {[%clk 0:04:54.6]} 6. a3 {[%clk 0:04:41.5]} 6... bxa3 {[%clk
0:04:53.9]} 7. c3 {[%clk 0:04:41]} 7... a6 {[%clk 0:04:52.9]} 8. Bd3 {[%clk
0:04:39.5]} 8... b5 {[%clk 0:04:39.5]} 9. O-O {[%clk 0:04:33.3]} 9... Bb7 {[%clk
0:04:38.9]} 10. Ng5 {[%clk 0:04:26.2]} 10... h6 {[%clk 0:04:21.8]} 11. Qh5
{[%clk 0:04:22]} 11... Qd7 {[%clk 0:04:11.5]} 12. Nxf7 {[%clk 0:04:14.6]} 12...
Nf6 {[%clk 0:03:51.3]} 13. exf6 {[%clk 0:04:11.4]} 13... Rg8 {[%clk 0:03:48.4]}
14. Ne5+ {[%clk 0:04:01.9]} 14... g6 {[%clk 0:03:48.3]} 15. Bxg6+ {[%clk
0:04:00.8]} 15... Qf7 {[%clk 0:03:47.1]} 16. Bxf7+ {[%clk 0:03:59.5]} 1-0

[Event "Live Chess"]
[Site "Chess.com"]
[Date "2024.06.01"]
[Round "-"]
[White "bobby_jamesFischer86"]
[Black "IanCalvert2"]
[Result "0-1"]
[WhiteElo "1590"]
[BlackElo "1486"]
[TimeControl "300"]
[EndTime "11:23:52 PDT"]
[Termination "IanCalvert2 won by resignation"]

1. d4 {[%clk 0:04:55.9]} 1... d5 {[%clk 0:04:58.7]} 2. c4 {[%clk 0:04:53.8]}
2... c6 {[%clk 0:04:56.6]} 3. Nc3 {[%clk 0:04:52.4]} 3... Nf6 {[%clk 0:04:50.6]}
4. cxd5 {[%clk 0:04:51.1]} 4... cxd5 {[%clk 0:04:48.8]} 5. Nf3 {[%clk
0:04:49.6]} 5... Nc6 {[%clk 0:04:46.3]} 6. e3 {[%clk 0:04:40.3]} 6... Bf5 {[%clk
0:04:39.2]} 7. Bd3 {[%clk 0:04:38.2]} 7... Bxd3 {[%clk 0:04:36.7]} 8. Qxd3
{[%clk 0:04:36.5]} 8... e6 {[%clk 0:04:35.3]} 9. a3 {[%clk 0:04:33.6]} 9... Bd6
{[%clk 0:04:29.8]} 10. b4 {[%clk 0:04:28.1]} 10... O-O {[%clk 0:04:25.7]} 11.
O-O {[%clk 0:04:24.2]} 11... Qc7 {[%clk 0:04:21.9]} 12. Nb5 {[%clk 0:04:18.1]}
12... Qd7 {[%clk 0:04:17]} 13. Nxd6 {[%clk 0:04:14.9]} 13... Qxd6 {[%clk
0:04:15.9]} 14. Bb2 {[%clk 0:04:13.2]} 14... Ne4 {[%clk 0:04:10.5]} 15. Nd2
{[%clk 0:04:07.6]} 15... Nxd2 {[%clk 0:04:07.9]} 16. Qxd2 {[%clk 0:04:05.5]}
16... Ne7 {[%clk 0:04:04.9]} 17. Rac1 {[%clk 0:04:02.8]} 17... Rac8 {[%clk
0:04:02.9]} 18. Rxc8 {[%clk 0:04:00.2]} 18... Rxc8 {[%clk 0:04:00.7]} 19. Rc1
{[%clk 0:03:49.7]} 19... Rxc1+ {[%clk 0:03:56.2]} 20. Qxc1 {[%clk 0:03:44.5]}
20... h6 {[%clk 0:03:53.8]} 21. g3 {[%clk 0:03:33.7]} 21... Qc6 {[%clk
0:03:48.4]} 22. Qc5 {[%clk 0:03:29.5]} 22... Qxc5 {[%clk 0:03:44.1]} 23. dxc5
{[%clk 0:03:27.9]} 23... f6 {[%clk 0:03:37.4]} 24. Kf1 {[%clk 0:03:25]} 24... a6
{[%clk 0:03:31.8]} 25. Ke2 {[%clk 0:03:23.5]} 25... Nc6 {[%clk 0:03:29.9]} 26.
Kd3 {[%clk 0:03:17.5]} 26... Kf7 {[%clk 0:03:27.4]} 27. f4 {[%clk 0:03:14.4]}
27... e5 {[%clk 0:03:21.4]} 28. Bc3 {[%clk 0:03:06.4]} 28... Ke6 {[%clk
0:03:18.7]} 29. g4 {[%clk 0:03:02.6]} 29... g6 {[%clk 0:03:04.3]} 30. h3 {[%clk
0:02:57.6]} 30... h5 {[%clk 0:02:54.4]} 31. a4 {[%clk 0:02:51]} 31... hxg4
{[%clk 0:02:45.9]} 32. hxg4 {[%clk 0:02:49.5]} 32... f5 {[%clk 0:02:43.9]} 33.
g5 {[%clk 0:02:43.3]} 33... e4+ {[%clk 0:02:15.1]} 34. Kd2 {[%clk 0:02:32]}
34... Kd7 {[%clk 0:02:13.2]} 35. b5 {[%clk 0:02:16.4]} 35... axb5 {[%clk
0:02:09.1]} 36. axb5 {[%clk 0:02:14.5]} 36... Na7 {[%clk 0:02:07.6]} 37. b6
{[%clk 0:02:02.8]} 37... Nb5 {[%clk 0:02:03.9]} 38. Kc2 {[%clk 0:01:57.2]} 38...
Kc6 {[%clk 0:02:00]} 39. Bd4 {[%clk 0:01:51.6]} 39... Nxd4+ {[%clk 0:01:56.1]}
40. Kd2 {[%clk 0:01:50.1]} 40... Nb3+ {[%clk 0:01:52.8]} 0-1

[Event "Live Chess"]
[Site "Chess.com"]
[Date "2024.06.01"]
[Round "-"]
[White "rakibsachchu"]
[Black "Richardallis"]
[Result "0-1"]
[WhiteElo "1581"]
[BlackElo "2055"]
[TimeControl "300"]
[EndTime "11:23:52 PDT"]
[Termination "Richardallis won by resignation"]

1. e4 {[%clk 0:04:56.8]} 1... d5 {[%clk 0:04:57.8]} 2. exd5 {[%clk 0:04:55.2]}
2... Nf6 {[%clk 0:04:57.2]} 3. Nf3 {[%clk 0:04:52.6]} 3... Nxd5 {[%clk
0:04:56.5]} 4. Bc4 {[%clk 0:04:51.3]} 4... Bg4 {[%clk 0:04:55.6]} 5. h3 {[%clk
0:04:46.7]} 5... Bxf3 {[%clk 0:04:54.2]} 6. Qxf3 {[%clk 0:04:44.9]} 6... c6
{[%clk 0:04:53.6]} 7. Nc3 {[%clk 0:04:42.3]} 7... e6 {[%clk 0:04:53]} 8. O-O
{[%clk 0:04:36.1]} 8... Nd7 {[%clk 0:04:50.2]} 9. d4 {[%clk 0:04:33.2]} 9... Bd6
{[%clk 0:04:47.5]} 10. Re1 {[%clk 0:04:28.1]} 10... O-O {[%clk 0:04:46]} 11. Ne4
{[%clk 0:04:23.6]} 11... Be7 {[%clk 0:04:44.6]} 12. Bd3 {[%clk 0:04:19.1]} 12...
Rc8 {[%clk 0:04:41]} 13. c3 {[%clk 0:04:14.3]} 13... Re8 {[%clk 0:04:33.7]} 14.
Be3 {[%clk 0:03:51]} 14... Nxe3 {[%clk 0:04:27.5]} 15. Rxe3 {[%clk 0:03:47.3]}
15... Nf6 {[%clk 0:04:26.5]} 16. Rae1 {[%clk 0:03:39.7]} 16... Nxe4 {[%clk
0:04:24.5]} 17. Qxe4 {[%clk 0:03:37.4]} 17... g6 {[%clk 0:04:23.4]} 18. h4
{[%clk 0:03:27.9]} 18... Qd5 {[%clk 0:04:21.9]} 19. Qg4 {[%clk 0:03:22.8]} 19...
h5 {[%clk 0:04:18.1]} 20. Qf4 {[%clk 0:03:10.5]} 20... Kg7 {[%clk 0:04:11.3]}
21. Re5 {[%clk 0:02:58]} 21... Qd8 {[%clk 0:04:04.7]} 22. g3 {[%clk 0:02:52.9]}
22... Bd6 {[%clk 0:04:02.6]} 23. Qe4 {[%clk 0:02:30.5]} 23... Bxe5 {[%clk
0:04:00.7]} 24. dxe5 {[%clk 0:02:26.7]} 24... Qd5 {[%clk 0:03:59.3]} 25. Qe3
{[%clk 0:02:21.5]} 25... Red8 {[%clk 0:03:52.9]} 26. Be4 {[%clk 0:02:15.9]}
26... Qxe5 {[%clk 0:03:50.9]} 0-1